fUST/lending_fUST_20251008
["ID","MTS","AMOUNT","RATE_DAILY","PERIOD"]
[389954715,1759908632989,-500.0,0.00021356,2]
[389954716,1759908632998,-500.0,0.00021356,2]
[389954717,1759908633007,-500.0,0.00021356,2]
[389954718,1759908633016,-500.0,0.00021356,2]
[389954719,1759908633025,-500.0,0.00021356,2]
[389954720,1759908633035,-500.0,0.00021356,2]
[389954721,1759908633044,-500.0,0.00021356,2]
[389954722,1759908633053,-215.5,0.00021359,3]
[389954723,1759908633063,-190.18,0.00021359,10]
[389954724,1759908633072,-158.48,0.00021359,10]
[389954725,1759908633081,-228.26912575,0.00021368,2]
[389954726,1759908633090,-500.0,0.00021369,2]
[389954727,1759908633099,-744.66,0.00021369,2]
[389954728,1759908633108,-500.0,0.00021369,2]
[389954729,1759908633117,-1313.15,0.00021369,2]
[389954730,1759908633126,-500.0,0.00021369,2]
[389954731,1759908633135,-500.0,0.00021369,2]
[389954732,1759908633144,-500.0,0.00021369,2]
[389954733,1759908633153,-500.0,0.00021369,2]
[389954734,1759908633162,-500.0,0.00021369,2]
[389954735,1759908633171,-500.0,0.00021369,2]
[389954736,1759908633180,-500.0,0.00021369,2]
[389954737,1759908633189,-481.50566544,0.00021369,2]
[389954738,1759908633198,-481.87688181,0.00021369,2]
[389954739,1759908633208,-500.0,0.00021369,2]
[389954740,1759908633217,-500.0,0.00021369,2]
[389954741,1759908633226,-500.0,0.00021369,2]
[389954742,1759908633235,-808.81,0.00021369,2]
[389954743,1759908633244,-500.0,0.00021369,2]
[389954744,1759908633253,-558.22,0.00021369,2]
[389954745,1759908633262,-500.0,0.00021369,2]
[389954746,1759908633271,-500.0,0.00021369,2]
[389954747,1759908633280,-545.9,0.00021369,2]
[389954748,1759908633289,-500.0,0.00021369,2]
[389954749,1759908633298,-500.0,0.00021369,2]
[389954750,1759908633313,-961.27,0.00021369,2]
[389954751,1759908633322,-500.0,0.00021369,2]
[389954752,1759908633330,-726.74,0.00021369,2]
[389954753,1759908633339,-500.0,0.00021369,2]
[389954754,1759908633348,-432.32822683,0.00021369,2]
[389954755,1759908633357,-500.0,0.00021369,2]
[389954756,1759908633366,-500.5358625,0.00021369,2]
[389954757,1759908633375,-631.12,0.00021369,2]
[389954758,1759908633385,-500.0,0.00021369,2]
[389954759,1759908633393,-500.33300307,0.00021369,2]
[389954760,1759908633402,-1431.13,0.00021369,2]
[389954761,1759908633411,-500.0,0.00021369,2]
[389954762,1759908633420,-361.74685083,0.00021369,2]
[389954763,1759908633429,-500.0,0.00021369,2]
[389954764,1759908633438,-500.0,0.00021369,2]
[389954765,1759908633447,-500.0,0.00021369,2]
[389954766,1759908633456,-1490.37,0.00021369,2]
[389954767,1759908633465,-501.42384181,0.00021369,2]
[389954768,1759908633473,-500.0,0.00021369,2]
[389954769,1759908633482,-630.52069328,0.00021369,2]
[389954770,1759908633491,-501.13212543,0.00021369,2]
[389954771,1759908633500,-500.0,0.00021369,2]
[389954772,1759908633509,-500.96633951,0.00021369,2]
[389954773,1759908633518,-778.29,0.00021369,2]
[389954774,1759908633527,-500.0,0.00021369,2]
[389954775,1759908633536,-500.0,0.00021369,2]
[389954776,1759908633545,-500.0,0.00021369,2]
[389954777,1759908633554,-501.25366752,0.00021369,2]
[389954778,1759908633563,-501.20150607,0.00021369,2]
[389954779,1759908633572,-500.0,0.00021369,2]
[389954780,1759908633580,-500.0,0.00021369,2]
[389954781,1759908633589,-500.0,0.00021369,2]
[389954782,1759908633598,-500.0,0.00021369,2]
[389954783,1759908633607,-560.54,0.00021369,2]
[389954784,1759908633616,-500.0,0.00021369,2]
[389954785,1759908633626,-533.6232091,0.00021369,2]
[389954786,1759908633639,-500.0,0.00021369,2]
[389954787,1759908633649,-500.0,0.00021369,2]
[389954788,1759908633658,-584.83,0.00021369,2]
[389954789,1759908633667,-500.0,0.00021369,2]
[389954790,1759908633676,-1306.84,0.00021369,2]
[389954791,1759908633685,-500.0,0.00021369,2]
[389954792,1759908633695,-500.0,0.00021369,2]
[389954793,1759908633705,-500.0,0.00021369,2]
[389954794,1759908633715,-1302.4,0.00021369,2]
[389954795,1759908633724,-1313.41,0.00021369,2]
[389954796,1759908633733,-500.0,0.00021369,2]
[389954797,1759908633742,-631.32,0.00021369,2]
[389954798,1759908633752,-631.32,0.00021369,2]
[389954799,1759908633760,-151.0,0.00021369,7]
[389954800,1759908633770,-151.0,0.00021369,7]
[389954801,1759908633779,-500.0,0.00021369,2]
[389954802,1759908633789,-500.0,0.00021369,2]
[389954803,1759908633798,-500.0,0.00021369,2]
[389954804,1759908633999,-509.73600551,0.00021369,2]
[389954805,1759908634017,-1571.19,0.00021369,2]
[389954806,1759908634027,-1727.69,0.00021369,2]
[389954807,1759908634036,-829.97,0.00021369,2]
[389954808,1759908634045,-500.0,0.00021369,2]
[389954809,1759908634055,-1201.38,0.00021369,2]
[389954810,1759908634065,-2905.59,0.00021369,2]
[389954811,1759908634074,-538.31929527,0.00021369,2]
[389954812,1759908634084,-500.0,0.00021369,2]
[389954813,1759908634094,-485.26017449,0.00021369,2]
[389954814,1759908634103,-500.0,0.00021369,2]
[389954815,1759908634112,-183.077275,0.00021369,7]
[389954816,1759908634121,-500.0,0.00021369,2]
[389954817,1759908634130,-155.694018,0.00021369,7]
[389954818,1759908634139,-1245.2,0.00021369,2]
[389954819,1759908634148,-502.75467202,0.00021369,2]
[389954820,1759908634158,-500.0,0.00021369,2]
[389954821,1759908634167,-500.0,0.00021369,2]
[389954822,1759908634177,-500.0,0.00021369,2]
[389954823,1759908634186,-500.0,0.00021369,2]
[389954824,1759908634196,-395.58439589,0.00021369,2]
[389954825,1759908634205,-500.0,0.00021369,2]
[389954826,1759908634214,-151.0,0.00021369,7]
[389954827,1759908634224,-151.0,0.00021369,7]
[389954828,1759908634233,-151.0,0.00021369,7]
[389954829,1759908634242,-151.0,0.00021369,7]
[389954830,1759908634251,-500.0,0.00021369,2]
[389954831,1759908634262,-500.0,0.00021369,2]
[389954832,1759908634271,-503.33334883,0.00021369,2]
[389954833,1759908634281,-534.58,0.00021369,2]
[389954834,1759908634291,-151.0,0.00021369,7]
[389954835,1759908634303,-151.0,0.00021369,7]
[389954836,1759908634317,-500.46448653,0.00021369,2]
[389954837,1759908634326,-151.0,0.00021369,7]
[389954838,1759908634336,-151.0,0.00021369,7]
[389954839,1759908634345,-500.0,0.00021369,2]
[389954840,1759908634357,-151.0,0.00021369,7]
[389954841,1759908634367,-151.0,0.00021369,7]
[389954842,1759908634376,-151.0,0.00021369,7]
[389954843,1759908634386,-151.0,0.00021369,7]
[389954844,1759908634395,-464.69227011,0.00021369,2]
[389954845,1759908634405,-151.0,0.00021369,7]
[389954846,1759908634414,-151.0,0.00021369,7]
[389954847,1759908634423,-500.0,0.00021369,2]
[389954848,1759908634433,-500.0,0.00021369,2]
[389954849,1759908634443,-151.0,0.00021369,7]
[389954850,1759908634452,-151.0,0.00021369,7]
[389954851,1759908634462,-1135.42,0.00021369,2]
[389954852,1759908634470,-151.0,0.00021369,7]
[389954853,1759908634480,-154.653116,0.00021369,7]
[389954854,1759908634490,-151.0,0.00021369,7]
[389954855,1759908634499,-500.0,0.00021369,2]
[389954856,1759908634508,-500.0,0.00021369,2]
[389954857,1759908634518,-500.0,0.00021369,2]
[389954858,1759908634527,-500.0,0.00021369,2]
[389954859,1759908634537,-500.0,0.00021369,2]
[389954860,1759908634547,-500.0,0.00021369,2]
[389954861,1759908634557,-500.0,0.00021369,2]
[389954862,1759908634567,-151.0,0.00021369,7]
[389954863,1759908634578,-151.366975,0.00021369,7]
[389954864,1759908634587,-500.0,0.00021369,2]
[389954865,1759908634596,-151.0,0.00021369,7]
[389954866,1759908634606,-151.0,0.00021369,7]
[389954867,1759908634615,-500.0,0.00021369,2]
[389954868,1759908634625,-500.0,0.00021369,2]
[389954869,1759908634635,-151.0,0.00021369,7]
[389954870,1759908634644,-151.0,0.00021369,7]
[389954871,1759908634653,-500.0,0.00021369,2]
[389954872,1759908634663,-2241.08,0.00021369,2]
[389954873,1759908634672,-151.0,0.00021369,7]
[389954874,1759908634681,-151.0,0.00021369,7]
[389954875,1759908634691,-500.0,0.00021369,2]
[389954876,1759908634700,-507.46758742,0.00021369,2]
[389954877,1759908634710,-1292.84,0.00021369,2]
[389954878,1759908634719,-509.39896462,0.00021369,2]
[389954879,1759908634728,-500.0,0.00021369,2]
[389954880,1759908634738,-500.0,0.00021369,2]
[389954881,1759908634747,-500.0,0.00021369,2]
[389954882,1759908634756,-414.05753028,0.00021369,2]
[389954883,1759908634765,-502.15000108,0.00021369,2]
[389954884,1759908634775,-500.0,0.00021369,2]
[389954885,1759908634785,-500.0,0.00021369,2]
[389954886,1759908634794,-662.79,0.00021369,2]
[389954887,1759908634803,-662.79,0.00021369,2]
[389954888,1759908634813,-500.0,0.00021369,2]
[389954889,1759908634822,-151.0,0.00021369,7]
[389954890,1759908634832,-151.0,0.00021369,7]
[389954891,1759908634842,-151.0,0.00021369,7]
[389954892,1759908634851,-151.0,0.00021369,7]
[389954893,1759908634861,-151.0,0.00021369,7]
[389954894,1759908634870,-151.0,0.00021369,7]
[389954895,1759908634880,-151.0,0.00021369,7]
[389954896,1759908634889,-151.0,0.00021369,7]
[389954897,1759908634898,-151.0,0.00021369,7]
[389954898,1759908634907,-151.0,0.00021369,7]
[389954899,1759908634916,-183.941907,0.00021369,7]
[389954900,1759908634925,-955.5907948,0.00021369,2]
[389954918,1759908638607,-112.3792052,0.00021369,2]
[389954919,1759908638618,-151.0,0.00021369,7]
[389954920,1759908638628,-151.0,0.00021369,7]
[389954921,1759908638638,-151.519144,0.00021369,7]
[389954922,1759908638648,-500.0,0.00021369,2]
[389954923,1759908638658,-919.96,0.00021369,2]
[389954924,1759908638668,-500.0,0.00021369,2]
[389954925,1759908638678,-151.0,0.00021369,7]
[389954926,1759908638689,-151.0,0.00021369,7]
[389954927,1759908638699,-151.0,0.00021369,7]
[389954928,1759908638710,-151.0,0.00021369,7]
[389954929,1759908638720,-151.0,0.00021369,7]
[389954930,1759908638730,-151.0,0.00021369,7]
[389954931,1759908638739,-151.0,0.00021369,7]
[389954932,1759908638750,-151.0,0.00021369,7]
[389954933,1759908638760,-151.0,0.00021369,7]
[389954934,1759908639118,-151.0,0.00021369,7]
[389954935,1759908639129,-190.334255,0.00021369,7]
[389954936,1759908639138,-2548.97,0.00021369,2]
[389954937,1759908639148,-500.0,0.00021369,2]
[389954938,1759908639157,-501.12144377,0.00021369,2]
[389954939,1759908639167,-500.0,0.00021369,2]
[389954940,1759908639176,-151.0,0.00021369,7]
[389954941,1759908639186,-151.0,0.00021369,7]
[389954942,1759908639196,-151.0,0.00021369,7]
[389954943,1759908639205,-206.51381866,0.00021369,2]
[389954944,1759908639215,-482.28762213,0.00021369,2]
[389954945,1759908639226,-500.0,0.00021369,2]
[389954946,1759908639236,-500.0,0.00021369,2]
[389954947,1759908639246,-500.0,0.00021369,2]
[389954948,1759908639256,-2236.62,0.00021369,2]
[389954949,1759908639266,-500.0,0.00021369,2]
[389954950,1759908639276,-487.17678357,0.00021369,2]
[389954951,1759908639285,-500.0,0.00021369,2]
[389954952,1759908639294,-876.05,0.00021369,2]
[389954953,1759908639305,-722.45,0.00021369,2]
[389954954,1759908639317,-414.29215324,0.00021369,2]
[389954955,1759908639326,-689.72,0.00021369,2]
[389954956,1759908639335,-501.61389189,0.00021369,2]
[389954957,1759908639344,-151.0,0.00021369,7]
[389954958,1759908639353,-151.0,0.00021369,7]
[389954959,1759908639363,-151.0,0.00021369,7]
[389954960,1759908639374,-511.55,0.00021369,2]
[389954961,1759908639383,-151.0,0.00021369,7]
[389954962,1759908639393,-151.313719,0.00021369,7]
[389954963,1759908639404,-500.0,0.00021369,2]
[389954964,1759908639413,-500.0,0.00021369,2]
[389954965,1759908639422,-653.49,0.00021369,2]
[389954966,1759908639432,-151.0,0.00021369,7]
[389954967,1759908639442,-151.0,0.00021369,2]
[389954968,1759908639451,-151.0,0.00021369,7]
[389954969,1759908639461,-151.939706,0.00021369,7]
[389954970,1759908639470,-151.0,0.00021369,2]
[389954971,1759908639479,-151.56421726,0.00021369,2]
[389954972,1759908639488,-151.0,0.00021369,2]
[389954973,1759908639498,-151.0,0.00021369,7]
[389954974,1759908639507,-151.0,0.00021369,7]
[389954975,1759908639517,-151.0,0.00021369,7]
[389954976,1759908639526,-151.0,0.00021369,7]
[389954977,1759908639536,-151.0,0.00021369,7]
[389954978,1759908639545,-151.0,0.00021369,7]
[389954979,1759908639555,-290.5544,0.00021369,7]
[389954980,1759908639564,-500.0,0.00021369,2]
[389954981,1759908639573,-500.0,0.00021369,2]
[389954982,1759908639583,-500.0,0.00021369,2]
[389954983,1759908639592,-2637.8,0.00021369,2]
[389954984,1759908639601,-500.0,0.00021369,2]
[389954985,1759908639611,-319.245917,0.00021369,7]
[389954986,1759908639621,-319.245917,0.00021369,7]
[389954987,1759908639630,-319.245917,0.00021369,7]
[389954988,1759908639640,-319.245917,0.00021369,7]
[389954989,1759908639649,-580.81,0.00021369,2]
[389954990,1759908639659,-319.245917,0.00021369,7]
[389954991,1759908639669,-319.245917,0.00021369,7]
[389954992,1759908639679,-500.0,0.00021369,2]
[389954993,1759908639689,-151.0,0.00021369,7]
[389954994,1759908639698,-319.245917,0.00021369,7]
[389954995,1759908639709,-151.0,0.00021369,7]
[389954996,1759908639718,-319.245917,0.00021369,7]
[389954997,1759908639728,-319.245917,0.00021369,7]
[389954998,1759908639737,-151.0,0.00021369,7]
[389954999,1759908639747,-319.245917,0.00021369,7]
[389955000,1759908639756,-151.0,0.00021369,7]
[389955001,1759908639766,-151.0,0.00021369,7]
[389955002,1759908639776,-151.0,0.00021369,7]
[389955003,1759908639785,-151.0,0.00021369,7]
[389955004,1759908639795,-887.45,0.00021369,2]
[389955005,1759908639805,-151.0,0.00021369,7]
[389955006,1759908639815,-319.245917,0.00021369,7]
[389955007,1759908639824,-151.0,0.00021369,7]
[389955008,1759908639834,-319.245917,0.00021369,7]
[389955009,1759908639844,-151.0,0.00021369,7]
[389955010,1759908639853,-319.245917,0.00021369,7]
[389955011,1759908639863,-319.245917,0.00021369,7]
[389955012,1759908639873,-151.0,0.00021369,7]
[389955013,1759908639883,-319.245917,0.00021369,7]
[389955014,1759908639893,-151.0,0.00021369,7]
[389955015,1759908639903,-248.391291,0.00021369,7]
[389955016,1759908639913,-319.245917,0.00021369,7]
[389955017,1759908639922,-319.245917,0.00021369,7]
[389955018,1759908639932,-319.245917,0.00021369,7]
[389955019,1759908639941,-319.245917,0.00021369,7]
[389955020,1759908639950,-319.245926,0.00021369,7]
[389955021,1759908639960,-500.0,0.00021369,2]
[389955022,1759908639969,-250.62981531,0.00021369,2]
[389955023,1759908639978,-151.0,0.00021369,7]
[389955024,1759908639987,-151.0,0.00021369,7]
[389955025,1759908639997,-151.0,0.00021369,7]
[389955026,1759908640006,-151.0,0.00021369,7]
[389955027,1759908640015,-152.149213,0.00021369,7]
[389955028,1759908640026,-802.58,0.00021369,2]
[389955029,1759908640036,-480.78310842,0.00021369,2]
[389955030,1759908640046,-151.0,0.00021369,7]
[389955031,1759908640057,-521.56841181,0.00021369,2]
[389955032,1759908640067,-151.0,0.00021369,7]
[389955033,1759908640077,-482.76278669,0.00021369,2]
[389955034,1759908640087,-151.0,0.00021369,7]
[389955036,1759908640096,-151.0,0.00021369,7]
[389955038,1759908640106,-151.0,0.00021369,7]
[389955039,1759908640125,-151.0,0.00021369,7]
[389955040,1759908640137,-151.0,0.00021369,7]
[389955041,1759908640147,-151.0,0.00021369,7]
[389955042,1759908640157,-151.0,0.00021369,7]
[389955043,1759908640167,-465.95510797,0.00021369,2]
[389955044,1759908640177,-500.0,0.00021369,2]
[389955045,1759908640187,-151.0,0.00021369,7]
[389955046,1759908640196,-151.327729,0.00021369,7]
[389955047,1759908640206,-151.0,0.00021369,7]
[389955048,1759908640216,-151.0,0.00021369,7]
[389955049,1759908640226,-229.948858,0.00021369,7]
[389955050,1759908640235,-151.0,0.00021369,7]
[389955051,1759908640245,-151.0,0.00021369,7]
[389955052,1759908640255,-151.0,0.00021369,7]
[389955053,1759908640265,-151.0,0.00021369,7]
[389955054,1759908640275,-501.40964491,0.00021369,2]
[389955055,1759908640284,-151.0,0.00021369,7]
[389955056,1759908640293,-151.0,0.00021369,7]
[389955057,1759908640303,-151.0,0.00021369,7]
[389955058,1759908640317,-151.0,0.00021369,7]
[389955059,1759908640327,-152.22753,0.00021369,7]
[389955060,1759908640337,-151.0,0.00021369,7]
[389955061,1759908640347,-165.045452,0.00021369,7]
[389955062,1759908640357,-1345.15,0.00021369,2]
[389955063,1759908640367,-500.0,0.00021369,2]
[389955065,1759908640376,-151.0,0.00021369,7]
[389955067,1759908640387,-151.0,0.00021369,7]
[389955069,1759908640396,-151.0,0.00021369,7]
[389955070,1759908640406,-151.0,0.00021369,7]
[389955072,1759908640415,-151.0,0.00021369,7]
[389955073,1759908640425,-151.0,0.00021369,7]
[389955075,1759908640433,-151.0,0.00021369,7]
[389955077,1759908640443,-151.0,0.00021369,7]
[389955079,1759908640452,-151.0,0.00021369,7]
[389955081,1759908640461,-151.0,0.00021369,7]
[389955083,1759908640470,-151.0,0.00021369,7]
[389955085,1759908640480,-151.0,0.00021369,7]
[389955087,1759908640490,-151.0,0.00021369,7]
[389955089,1759908640499,-500.0,0.00021369,2]
[389955090,1759908640509,-198.609919,0.00021369,7]
[389955092,1759908640520,-151.0,0.00021369,7]
[389955094,1759908640530,-151.0,0.00021369,7]
[389955096,1759908640540,-153.477985,0.00021369,7]
[389955098,1759908640549,-690.16,0.00021369,2]
[389955100,1759908640559,-1082.23,0.00021369,2]
[389955102,1759908640569,-151.0,0.00021369,7]
[389955104,1759908640579,-151.0,0.00021369,7]
[389955106,1759908640589,-151.0,0.00021369,7]
[389955108,1759908640599,-151.0,0.00021369,7]
[389955110,1759908640610,-151.0,0.00021369,7]
[389955112,1759908640620,-151.0,0.00021369,7]
[389955114,1759908640630,-151.0,0.00021369,7]
[389955115,1759908640640,-151.0,0.00021369,7]
[389955117,1759908640649,-151.0,0.00021369,7]
[389955119,1759908640659,-151.0,0.00021369,7]
[389955121,1759908640668,-151.0,0.00021369,7]
[389955123,1759908640677,-1450.39,0.00021369,2]
[389955125,1759908640687,-151.0,0.00021369,7]
[389955127,1759908640697,-151.0,0.00021369,7]
[389955129,1759908640707,-151.0,0.00021369,7]
[389955130,1759908640717,-151.0,0.00021369,7]
[389955132,1759908640727,-500.0,0.00021369,2]
[389955134,1759908640737,-151.0,0.00021369,7]
[389955136,1759908640747,-151.0,0.00021369,7]
[389955138,1759908640757,-151.0,0.00021369,7]
[389955140,1759908640767,-222.20042,0.00021369,7]
[389955142,1759908640777,-11559.55,0.00021369,2]
[389955144,1759908640787,-860.96,0.00021369,2]
[389955146,1759908640796,-151.0,0.00021369,7]
[389955148,1759908640807,-500.0,0.00021369,2]
[389955150,1759908640816,-1000.0,0.00021369,2]
[389955152,1759908640825,-151.0,0.00021369,7]
[389955153,1759908640835,-1000.0,0.00021369,2]
[389955155,1759908640844,-151.0,0.00021369,7]
[389955157,1759908640853,-1000.0,0.00021369,2]
[389955159,1759908640862,-204.276075,0.00021369,7]
[389955161,1759908640871,-1000.0,0.00021369,2]
[389955163,1759908640882,-1000.0,0.00021369,2]
[389955165,1759908640891,-1000.0,0.00021369,2]
[389955167,1759908640901,-1000.0,0.00021369,2]
[389955169,1759908640910,-1000.0,0.00021369,2]
[389955170,1759908640920,-1015.706381,0.00021369,2]
[389955172,1759908640931,-500.0,0.00021369,2]
[389955174,1759908640941,-151.0,0.00021369,7]
[389955175,1759908640951,-1561.74,0.00021369,2]
[389955176,1759908640961,-151.0,0.00021369,7]
[389955177,1759908640970,-151.0,0.00021369,7]
[389955178,1759908640980,-151.0,0.00021369,7]
[389955179,1759908640990,-151.0,0.00021369,7]
[389955180,1759908640999,-151.0,0.00021369,7]
[389955181,1759908641009,-1572.12,0.00021369,2]
[389955182,1759908641019,-151.0,0.00021369,7]
[389955183,1759908641028,-153.531877,0.00021369,7]
[389955184,1759908641037,-500.0,0.00021369,2]
[389955185,1759908641046,-480.5587753,0.00021369,2]
[389955186,1759908641057,-151.561202,0.00021369,7]
[389955187,1759908641067,-500.0,0.00021369,2]
[389955188,1759908641077,-500.0,0.00021369,2]
[389955189,1759908641086,-530.69263608,0.00021369,2]
[389955190,1759908641096,-500.0,0.00021369,2]
[389955191,1759908641106,-500.0,0.00021369,2]
[389955192,1759908641116,-1450.16,0.00021369,2]
[389955193,1759908641125,-500.0,0.00021369,2]
[389955194,1759908641135,-500.0,0.00021369,2]
[389955195,1759908641145,-1179.83,0.00021369,2]
[389955196,1759908641155,-500.0,0.00021369,2]
[389955197,1759908641164,-739.54,0.00021369,2]
[389955198,1759908641174,-519.18,0.00021369,2]
[389955199,1759908641183,-1122.75,0.00021369,2]
[389955200,1759908641192,-2134.24,0.00021369,2]
[389955201,1759908641202,-2194.57,0.00021369,2]
[389955202,1759908641212,-1693.4,0.00021369,2]
[389955203,1759908641221,-500.0,0.00021369,2]
[389955204,1759908641230,-596.5,0.00021369,2]
[389955205,1759908641240,-680.0,0.00021369,2]
[389955206,1759908641250,-822.0,0.00021369,2]
[389955207,1759908641259,-500.0,0.00021369,2]
[389955208,1759908641269,-23153.77,0.00021369,2]
[389955209,1759908641278,-500.0,0.00021369,2]
[389955210,1759908641287,-727.01,0.00021369,2]
[389955211,1759908641297,-151.0,0.00021369,7]
[389955212,1759908641307,-151.0,0.00021369,7]
[389955213,1759908641319,-151.0,0.00021369,7]
[389955214,1759908641328,-210.106978,0.00021369,7]
[389955215,1759908641338,-1000.0,0.00021369,2]
[389955216,1759908641347,-151.33548529,0.00021369,2]
[389955217,1759908641357,-500.0,0.00021369,2]
[389955218,1759908641366,-5532.31,0.00021369,2]
[389955219,1759908641376,-151.0,0.00021369,2]
[389955220,1759908641385,-151.0,0.00021369,2]
[389955221,1759908641395,-500.0,0.00021369,2]
[389955222,1759908641404,-5077.29,0.00021369,2]
[389955223,1759908641414,-175.57269617,0.00021369,2]
[389955224,1759908641423,-424.27500569,0.00021369,2]
[389955225,1759908641432,-151.36240746,0.00021369,2]
[389955226,1759908641442,-500.0,0.00021369,2]
[389955227,1759908641451,-402.00603937,0.00021369,2]
[389955228,1759908641461,-500.0,0.00021369,2]
[389955229,1759908641470,-500.0,0.00021369,2]
[389955230,1759908641479,-500.0,0.00021369,2]
[389955231,1759908641489,-500.0,0.00021369,2]
[389955232,1759908641500,-655.84,0.00021369,2]
[389955233,1759908641509,-151.0,0.00021369,2]
[389955234,1759908641519,-1809.98,0.00021369,2]
[389955235,1759908641529,-10113.81,0.00021369,2]
[389955236,1759908641538,-500.7998235,0.00021369,2]
[389955237,1759908641548,-500.0,0.00021369,2]
[389955238,1759908641559,-500.0,0.00021369,2]
[389955239,1759908641568,-10058.96,0.00021369,2]
[389955240,1759908641579,-160.0,0.00021369,7]
[389955241,1759908641588,-5742.0,0.00021369,2]
[389955242,1759908641598,-151.0,0.00021369,7]
[389955243,1759908641607,-151.0,0.00021369,7]
[389955244,1759908641616,-2311.32,0.00021369,2]
[389955245,1759908641625,-151.0,0.00021369,7]
[389955246,1759908641636,-151.0,0.00021369,7]
[389955247,1759908641651,-151.0,0.00021369,7]
[389955248,1759908641667,-538.63,0.00021369,2]
[389955249,1759908641677,-151.00000077,0.00021369,7]
[389955250,1759908641686,-151.0,0.00021369,7]
[389955251,1759908641696,-151.0,0.00021369,7]
[389955252,1759908641705,-151.0,0.00021369,7]
[389955253,1759908641715,-151.0,0.00021369,7]
[389955254,1759908641725,-151.0,0.00021369,7]
[389955255,1759908641734,-151.0,0.00021369,7]
[389955256,1759908641743,-151.0,0.00021369,7]
[389955257,1759908641753,-277.46032,0.00021369,7]
[389955258,1759908641762,-500.0,0.00021369,2]
[389955259,1759908641772,-151.90159,0.00021369,7]
[389955260,1759908641782,-501.12586889,0.00021369,2]
[389955261,1759908641791,-3852.52,0.00021369,2]
[389955262,1759908641801,-2923.1,0.00021369,2]
[389955263,1759908641811,-506.15442407,0.00021369,2]
[389955264,1759908641820,-1768.68,0.00021369,2]
[389955265,1759908641829,-500.0,0.00021369,2]
[389955266,1759908641839,-1157.0,0.00021369,2]
[389955267,1759908641848,-589.22,0.00021369,2]
[389955268,1759908641858,-455.37443687,0.00021369,2]
[389955269,1759908641867,-226.914944,0.00021369,7]
[389955270,1759908641877,-151.778011,0.00021369,7]
[389955271,1759908641886,-226.914944,0.00021369,7]
[389955272,1759908641896,-226.914944,0.00021369,7]
[389955273,1759908641905,-862.160968,0.00021369,7]
[389955274,1759908641915,-226.914944,0.00021369,7]
[389955275,1759908641926,-862.160968,0.00021369,7]
[389955276,1759908641935,-151.0,0.00021369,7]
[389955277,1759908641945,-151.0,0.00021369,7]
[389955278,1759908641954,-226.914944,0.00021369,7]
[389955279,1759908641964,-862.160968,0.00021369,7]
[389955280,1759908641974,-263.120627,0.00021369,7]
[389955281,1759908641983,-151.0,0.00021369,7]
[389955282,1759908641992,-226.914944,0.00021369,7]
[389955283,1759908642002,-862.160968,0.00021369,7]
[389955284,1759908642012,-151.0,0.00021369,7]
[389955285,1759908642021,-226.914944,0.00021369,7]